bitfinex/quotes_ETHUSD_20250929
["timestamp","ask_amount","ask_price","bid_price","bid_amount"]
[1759157124597,0.1184,4199.9,4199.8,0.002]
[1759157124824,0.3569,4199.9,4199.8,0.002]
[1759157125311,0.804,4199.9,4199.8,0.002]
[1759157126312,0.1184,4199.9,4199.8,0.002]
[1759157127265,0.09549081,4200.1,4199.8,0.6937]
[1759157127486,0.1184,4200.2,4199.8,0.002]
[1759157127795,0.0002,4200.6,4199.9,0.6917]
[1759157127963,0.0002,4200.6,4200.1,0.1184]
[1759157128162,0.0002,4200.6,4200.2,0.6917]
[1759157128591,0.0002,4200.6,4200.2,0.2387]
[1759157128965,0.0002,4200.6,4200.1,0.1184]
[1759157129712,0.0002,4200.6,4200.2,0.6917]
[1759157130190,0.0002,4200.6,4200.3,0.6917]
[1759157130392,0.0002,4200.6,4200.4,3.057]
[1759157130591,0.0002,4200.6,4200.4,3.7487]
[1759157130791,0.0002,4200.6,4200.5,0.6917]
[1759157132276,0.0084,4201.0,4200.5,0.6917]
[1759157132471,0.0084,4201.0,4200.6,0.2387]
[1759157132683,0.0084,4201.0,4200.7,3.057]
[1759157133277,0.0084,4201.0,4200.8,0.2387]
[1759157133506,0.0084,4201.0,4200.8,0.6917]
[1759157134410,0.0084,4201.0,4200.8,0.2387]
[1759157134607,0.0084,4201.0,4200.9,0.6917]
[1759157135118,3.0,4202.1,4200.9,0.6917]
[1759157135119,0.2385,4202.9,4200.9,17.83313482]
[1759157135411,0.2385,4202.2,4201.0,3.7487]
[1759157135609,0.2385,4202.1,4201.1,3.057]
[1759157135812,0.2385,4202.0,4201.0,0.2387]
[1759157136011,0.2385,4202.0,4201.2,3.057]
[1759157136329,0.85265,4201.9,4201.2,3.057]
[1759157136480,0.2385,4201.8,4201.2,3.057]
[1759157137002,1.432,4202.2,4201.2,3.057]
[1759157137344,0.2385,4202.1,4201.2,3.057]
[1759157137480,0.2385,4202.0,4201.2,3.057]
[1759157138129,0.7158478,4202.3,4201.2,11.15764678]
[1759157138334,2.33238478,4202.2,4201.2,11.15764678]
[1759157138537,1.432,4201.8,4200.5,0.6917]
[1759157138708,1.432,4201.8,4200.6,3.057]
[1759157138910,2.1176,4201.7,4200.6,3.057]
[1759157139235,0.2429,4201.6,4200.5,0.6917]
[1759157139436,0.2429,4201.6,4200.6,3.057]
[1759157139437,0.28379571,4201.5,4200.6,3.057]
[1759157139737,0.1184,4201.2,4200.7,0.2439]
[1759157140236,0.1184,4201.2,4200.7,0.6715]
[1759157140733,0.1184,4201.2,4200.8,3.057]
[1759157141200,0.3613,4201.2,4200.9,3.057]
[1759157141404,0.3613,4201.2,4200.8,3.057]
[1759157141405,0.2429,4201.1,4200.8,3.057]
[1759157141742,0.2429,4201.1,4200.6,3.057]
[1759157141743,0.2429,4201.0,4200.6,3.057]
[1759157141925,0.3613,4200.9,4200.6,3.057]
[1759157142438,0.1184,4200.9,4200.3,0.2439]
[1759157142602,0.1184,4200.9,4200.6,3.057]
[1759157143205,0.1184,4200.9,4200.7,0.4276]
[1759157143511,0.1184,4200.9,4200.7,0.6715]
[1759157143711,0.1184,4200.9,4200.8,0.2439]
[1759157144021,0.1184,4200.9,4200.7,0.4276]
[1759157144425,0.71601182,4201.3,4200.6,3.057]
[1759157144426,0.71601182,4201.3,4200.8,0.6715]
[1759157144618,1.71579571,4201.5,4200.9,0.6715]
[1759157144619,0.1184,4201.2,4200.9,0.6715]
[1759157144819,0.1184,4201.2,4201.0,0.6715]
[1759157145230,0.001,4201.1,4201.0,0.2439]
[1759157145544,0.001,4201.1,4201.0,0.6715]
[1759157145746,0.001,4201.1,4200.7,8.10064678]
[1759157146318,0.001,4201.1,4200.8,0.6715]
[1759157146518,0.001,4201.1,4200.9,3.057]
[1759157146827,0.001,4201.1,4200.9,3.8469]
[1759157147135,0.001,4201.1,4201.0,0.7899]
[1759157148740,0.001,4201.1,4200.9,3.057]
[1759157149253,0.001,4201.1,4200.8,0.1184]
[1759157149429,0.001,4201.1,4200.6,0.4276]
[1759157149629,0.001,4201.1,4200.9,3.056]
[1759157149943,0.001,4201.1,4200.1,0.6735]
[1759157149944,0.2429,4201.0,4200.1,0.6735]
[1759157150146,0.1184,4200.9,4200.2,0.1184]
[1759157150449,1.433,4201.1,4200.3,3.056]
[1759157150450,0.1184,4200.6,4200.3,3.056]
[1759157151550,0.3613,4200.6,4200.3,3.056]
[1759157152057,1.5504,4200.6,4200.1,0.002]
[1759157152279,0.001,4201.1,4200.1,0.002]
[1759157152554,0.2429,4201.0,4200.2,0.4276]
[1759157153073,0.6988,4200.9,4200.1,0.002]
[1759157153569,1.432,4200.8,4200.1,3.064]
[1759157153744,0.91188,4200.7,4200.1,3.064]
[1759157154673,0.45598,4200.7,4200.1,3.064]
[1759157154833,2.96598,4200.7,4200.1,3.064]
[1759157155038,0.45598,4200.7,4200.1,3.064]
[1759157156171,0.21308,4200.7,4200.1,3.064]
[1759157156471,1.432,4201.0,4200.2,0.6715]
[1759157156859,1.432,4201.0,4200.3,0.2439]
[1759157157259,1.433,4201.1,4200.3,0.2439]
[1759157157558,1.4322,4201.1,4200.3,0.2439]
[1759157157761,0.0002,4201.1,4200.3,0.2439]
[1759157158145,0.16771,4201.1,4200.4,0.4276]
[1759157158341,0.16771,4201.1,4200.4,0.6715]
[1759157158546,0.2429,4201.0,4200.1,3.064]
[1759157158768,0.2429,4200.9,4200.1,3.064]
[1759157159671,0.2429,4200.8,4200.1,0.002]
[1759157159840,0.21308,4200.7,4200.1,0.002]
[1759157160042,0.21308,4200.7,4200.2,0.2439]
[1759157160251,1.59971,4201.1,4200.3,0.6715]
[1759157160972,0.16771,4201.1,4200.4,0.6715]
[1759157161272,0.16771,4201.1,4200.5,0.6715]
[1759157161273,0.0002,4201.1,4200.5,0.6715]
[1759157161479,0.0002,4201.1,4200.6,0.2439]
[1759157161972,0.2431,4201.1,4200.3,0.2439]
[1759157162177,0.1184,4200.9,4200.3,0.2439]
[1759157162747,0.1184,4200.9,4200.3,0.6715]
[1759157163046,0.1184,4200.9,4200.4,0.6715]
[1759157163249,0.1184,4200.9,4200.2,3.1774]
[1759157163250,0.1184,4200.9,4200.5,0.6715]
[1759157163577,0.0002,4201.1,4200.8,0.1184]
[1759157163964,0.1186,4201.1,4200.6,0.6715]
[1759157164166,0.1186,4201.1,4200.7,0.2439]
[1759157164680,0.1186,4201.1,4200.8,0.6715]
[1759157164681,0.0002,4201.1,4200.8,0.6715]
[1759157165179,0.0002,4201.1,4200.6,0.1184]
[1759157165352,0.0002,4201.1,4200.9,0.6715]
[1759157165891,0.0002,4201.1,4201.0,0.6715]
[1759157167802,0.0002,4201.1,4201.0,0.2439]
[1759157168107,0.4559,4201.5,4200.5,3.057]
[1759157168304,0.1184,4201.1,4200.5,3.057]
[1759157168528,0.1184,4201.1,4200.6,0.2439]
[1759157168693,0.1184,4201.1,4200.7,0.4276]
[1759157168896,0.1184,4201.1,4200.8,0.6715]
[1759157169213,0.1184,4201.4,4200.8,0.6715]
[1759157170010,0.1184,4201.4,4200.8,0.2439]
[1759157171229,0.6305,4201.5,4200.7,3.057]
[1759157171449,0.1184,4201.1,4200.7,3.057]
[1759157171598,0.1184,4201.1,4200.8,0.6741]
[1759157171997,0.1184,4201.1,4200.9,0.6741]
[1759157172319,0.1184,4201.4,4200.9,0.2449]
[1759157172834,0.1184,4201.4,4201.0,0.6741]
[1759157174527,0.1184,4201.4,4200.7,3.8413]
[1759157175620,0.1184,4201.4,4200.7,0.7843]
[1759157176723,0.1184,4201.4,4200.8,0.6659]
[1759157177540,0.1184,4201.4,4200.9,0.2276]
[1759157177744,0.27344,4201.4,4200.7,0.1184]
[1759157178134,0.61914,4201.4,4200.5,0.6659]
[1759157178441,0.1184,4201.1,4200.5,0.2276]
[1759157179560,0.4641,4201.1,4200.0,0.2276]
[1759157179761,0.1184,4200.3,4199.8,0.002]
[1759157180527,0.1184,4200.3,4200.1,0.4403]
[1759157180723,0.1184,4200.6,4200.2,0.6659]
[1759157181066,0.1184,4200.6,4200.1,0.002]
[1759157181067,0.1184,4200.6,4200.3,0.6659]
[1759157181274,0.1184,4200.6,4200.4,0.6659]
[1759157181822,0.1184,4200.6,4200.5,0.002]
[1759157182250,0.1176,4200.6,4200.5,0.2296]
[1759157182458,0.1176,4200.6,4200.5,0.002]
[1759157182871,0.96099964,4200.6,4200.5,0.002]
[1759157183104,0.1176,4200.6,4200.5,0.002]
[1759157183780,3.0,4201.1,4200.5,0.6679]
[1759157183781,0.1184,4200.8,4200.5,0.6679]
[1759157183984,6.88439644,4201.5,4200.5,0.6679]
[1759157183985,0.11938475,4202.7,4202.5,2.37953599]
[1759157184211,3.0,4204.4,4202.5,17.08079288]
[1759157184515,3.0,4204.4,4203.6,6.88439644]
[1759157184803,3.0,4204.4,4203.7,3.8389]
[1759157185176,3.0,4204.4,4203.8,0.6659]
[1759157185380,3.0,4204.4,4203.9,0.6659]
[1759157185579,3.0,4204.4,4203.9,0.88546503]
[1759157186220,3.0,4204.4,4203.9,0.6659]
[1759157186660,15.6118897,4204.0,4203.9,3.3976]
[1759157187007,15.6118897,4204.0,4203.6,0.6659]
[1759157187161,15.6118897,4204.0,4203.9,3.17]
[1759157187360,15.6118897,4204.0,4203.7,0.6659]
[1759157187658,15.6118897,4204.0,4203.8,3.168]
[1759157187855,1.56118897,4203.9,4203.8,3.168]
[1759157188489,1.56118897,4203.9,4203.6,3.168]
[1759157190320,1.56118897,4203.9,4203.6,3.3956]
[1759157190491,1.56118897,4203.9,4203.6,3.8339]
[1759157190796,1.56118897,4203.9,4203.6,3.3956]
[1759157191905,1.56118897,4203.9,4203.6,3.168]
[1759157192401,1.56118897,4203.9,4203.6,3.3956]
[1759157194296,1.56118897,4203.9,4203.6,3.168]
[1759157194973,0.61231598,4203.8,4203.4,0.1184]
[1759157195324,0.61231598,4203.8,4203.5,3.155]
[1759157195602,0.61231598,4203.8,4203.4,0.1184]
[1759157195900,0.61231598,4203.8,4203.4,0.346]
[1759157196060,0.61231598,4203.8,4203.5,3.153]
[1759157196394,0.61231598,4203.8,4203.4,0.346]
[1759157196564,0.61231598,4203.8,4203.5,3.153]
[1759157196767,0.61231598,4203.8,4203.6,3.152]
[1759157197099,1.6366132,4203.7,4203.4,0.1184]
[1759157197302,0.8256,4203.6,4203.0,0.48332125]
[1759157197608,0.1184,4203.6,4202.9,1.76]
[1759157197765,0.1184,4203.6,4202.9,0.346]
[1759157197963,0.1184,4203.6,4203.0,3.152]
[1759157198167,0.1184,4203.6,4202.9,0.1184]
[1759157198400,0.1184,4203.6,4203.0,3.8169]
[1759157198608,3.0,4203.9,4203.1,0.68969196]
[1759157198777,3.0,4203.9,4203.4,0.1184]
[1759157198966,3.0,4203.9,4203.5,3.8159]
[1759157199167,3.0,4203.9,4203.6,0.7065]
[1759157199478,3.0,4203.9,4203.7,0.7065]
[1759157200467,14.192627,4204.0,4203.7,0.7065]
[1759157200889,14.192627,4204.0,4203.7,0.2494]
[1759157201404,14.192627,4204.0,4203.8,0.2494]
[1759157201573,14.192627,4204.0,4203.9,0.7065]
[1759157202106,14.192627,4204.0,4203.6,0.2494]
[1759157202469,14.192627,4204.0,4203.7,0.7065]
[1759157202801,14.192627,4204.0,4203.8,0.7065]
[1759157203009,14.192627,4204.0,4203.9,0.2494]
[1759157203476,14.192627,4204.0,4203.9,0.7065]
[1759157204772,14.192627,4204.0,4203.9,3.8495]
[1759157205198,14.192627,4204.0,4203.9,0.7065]
[1759157205434,14.192627,4204.0,4203.9,3.8485]
[1759157205936,14.192627,4204.0,4203.9,6.22724354]
[1759157206439,14.192627,4204.0,4203.9,3.8485]
[1759157206633,14.192627,4204.0,4203.9,0.2494]
[1759157206806,14.192627,4204.0,4203.6,0.2494]
[1759157207133,14.192627,4204.0,4203.0,2.37924056]
[1759157207134,14.192627,4204.0,4203.7,3.139]
[1759157207435,14.191827,4204.0,4203.7,3.139]
[1759157208408,14.191827,4204.0,4203.2,2.37912662]
[1759157208608,0.2277,4203.9,4202.8,0.2494]
[1759157208911,0.2277,4203.9,4202.9,3.137]
[1759157209521,0.2277,4203.9,4203.0,0.2494]
[1759157209911,0.2277,4203.9,4203.0,0.7065]
[1759157210425,0.2277,4203.9,4203.3,0.1184]
[1759157210627,14.191827,4204.0,4203.7,0.1184]
[1759157210931,14.191827,4204.0,4203.7,3.2544]
[1759157211540,14.191827,4204.0,4203.8,0.2494]
[1759157212317,14.191827,4204.0,4203.7,3.7115]
[1759157212837,14.191827,4204.0,4203.7,3.9609]
[1759157213663,14.191827,4204.0,4203.7,3.5038]
[1759157213864,14.191827,4204.0,4203.7,3.9609]
[1759157214517,14.191827,4204.0,4203.8,0.7065]
[1759157214714,14.191827,4204.0,4203.9,0.1184]
[1759157215845,14.419527,4204.0,4203.8,3.129]
[1759157216440,14.191827,4204.0,4203.8,3.129]
[1759157217428,14.191827,4204.0,4203.8,3.3784]
[1759157218045,14.191827,4204.0,4203.8,3.129]
[1759157218227,14.191827,4204.0,4203.8,3.8355]
[1759157218915,14.191827,4204.0,4203.9,0.7065]
[1759157219127,14.191827,4204.0,4203.8,3.129]
[1759157219523,13.941827,4204.0,4203.8,3.129]
[1759157220125,13.941827,4204.0,4203.3,0.2494]
[1759157220564,13.941827,4204.0,4203.4,3.127]
[1759157220722,13.941827,4204.0,4203.4,3.5841]
[1759157221664,13.941827,4204.0,4203.5,0.2494]
[1759157222056,13.941827,4204.0,4203.6,0.7065]
[1759157222265,13.941827,4204.0,4203.7,0.7065]
[1759157222760,13.941827,4204.0,4203.8,3.125]
[1759157223063,13.941827,4204.0,4203.9,0.2494]
[1759157223561,13.941827,4204.0,4203.8,3.125]
[1759157224182,13.941827,4204.0,4203.9,3.122]
[1759157224460,13.941827,4204.0,4203.9,3.3714]
[1759157224669,13.941827,4204.0,4203.9,3.8285]
[1759157224963,13.941827,4204.0,4203.9,0.7065]
[1759157225169,13.941827,4204.0,4203.9,3.3704]
[1759157225536,13.941827,4204.0,4203.9,6.20624354]
[1759157225732,13.941827,4204.0,4203.9,6.32464354]
[1759157226234,13.941827,4204.0,4203.9,13.19728015]
[1759157226434,13.691827,4204.0,4203.9,5.61814354]
[1759157226634,13.691827,4204.0,4203.9,6.32464354]
[1759157226834,13.691827,4204.0,4203.9,13.19728015]
[1759157227283,3.0,4204.4,4203.9,20.06991676]
[1759157227577,0.4995,4205.0,4204.9,2.37817784]
[1759157227738,0.4995,4205.0,4204.9,8.49917784]
[1759157227967,0.4995,4205.0,4204.9,9.20567784]
[1759157228297,0.2495,4205.0,4204.9,9.20567784]
[1759157228456,0.2495,4205.0,4204.9,0.7065]
[1759157228655,0.2495,4205.0,4204.9,3.3684]
[1759157228860,0.2495,4205.0,4204.9,6.20367784]
[1759157229160,0.2495,4205.0,4204.9,2.37817784]
[1759157229481,0.2495,4205.0,4204.9,6.21357784]
[1759157229678,0.2495,4205.0,4204.9,13.08621445]
[1759157230004,0.2495,4205.0,4204.9,9.99063661]
[1759157230307,0.2495,4205.0,4204.9,3.118]
[1759157230590,0.2495,4205.0,4204.9,6.21257784]
[1759157230768,0.2495,4205.0,4204.9,3.09557784]
[1759157230956,0.2495,4205.0,4204.0,21.76576857]
[1759157231158,0.2495,4205.0,4204.5,2.37836019]
[1759157231458,0.2495,4205.0,4204.6,3.116]
[1759157231725,0.2495,4205.0,4204.7,3.115]
[1759157231996,0.2495,4205.0,4204.8,3.115]
[1759157232288,0.2489,4204.9,4204.8,3.115]
[1759157232676,0.2489,4204.9,4204.8,3.117]
[1759157233057,0.2489,4204.9,4204.2,2.37856238]
[1759157233261,0.2489,4204.9,4204.3,3.116]
[1759157233590,0.2489,4204.9,4204.4,3.116]
[1759157234104,0.6766,4204.8,4203.7,0.2416]
[1759157234404,0.6766,4204.8,4203.9,2.37873599]
[1759157234697,0.2487,4205.0,4204.0,2.40247326]
[1759157234902,0.2487,4205.0,4204.1,3.116]
[1759157234903,0.67945,4205.0,4204.1,3.116]
[1759157235100,0.67945,4205.0,4204.2,2.3785573]
[1759157235306,0.67945,4205.0,4204.1,5.73622178]
[1759157235512,0.2487,4205.0,4204.2,2.40234999]
[1759157235711,0.2487,4205.0,4204.5,2.37835143]
[1759157235904,0.2487,4205.0,4204.4,2.37844757]
[1759157236106,0.2487,4205.0,4204.5,3.115]
[1759157236508,0.2487,4205.0,4204.6,0.69928347]
[1759157236683,0.2487,4205.0,4204.9,2.37817784]
[1759157236891,0.2487,4205.0,4204.9,6.16867784]
[1759157237405,0.2487,4205.0,4204.9,6.757757]
[1759157237605,0.2487,4205.0,4204.9,0.58907916]
[1759157237606,0.2497,4205.0,4204.9,0.58907916]
[1759157237996,0.2497,4205.0,4204.9,3.70307916]
[1759157238189,0.2497,4205.0,4204.9,0.58907916]
[1759157238392,0.2497,4205.0,4204.9,3.70407916]
[1759157238393,0.9263,4205.0,4204.9,3.70407916]
[1759157238593,0.9263,4205.0,4204.9,0.58907916]
[1759157238927,0.9263,4205.0,4204.5,0.1184]
[1759157239230,0.9263,4205.0,4204.1,0.002]
[1759157239520,0.1184,4204.7,4204.2,3.115]
[1759157239985,0.6766,4204.6,4204.2,3.115]
[1759157240191,0.6766,4204.5,4204.2,3.115]
[1759157240392,0.2388,4204.4,4204.2,3.115]
[1759157240719,0.1184,4204.7,4204.2,3.115]
[1759157240919,0.6766,4204.6,4204.2,3.115]
[1759157241219,0.6875,4205.0,4204.1,0.002]
[1759157241399,0.6875,4205.0,4204.2,3.115]
[1759157241400,0.6766,4204.5,4204.2,3.115]
[1759157241597,0.6766,4204.5,4204.1,0.002]
[1759157241598,0.2388,4204.4,4204.3,3.116]
[1759157241797,0.4885,4205.0,4204.3,3.116]
[1759157242002,0.4885,4205.0,4204.1,2.38058675]
[1759157242311,0.2388,4204.9,4204.2,3.116]
[1759157242522,0.2497,4205.0,4204.5,2.37837753]
[1759157242822,0.6766,4204.9,4204.6,3.115]
[1759157243042,0.2388,4204.8,4204.6,3.115]
[1759157243247,0.2497,4205.0,4204.6,3.115]
[1759157243445,0.2497,4205.0,4204.3,0.2416]
[1759157243828,0.2497,4205.0,4204.5,2.37838007]
[1759157244014,0.2497,4205.0,4204.6,0.2416]
[1759157244215,0.2497,4205.0,4204.4,3.116]
[1759157244414,0.2388,4204.9,4204.3,2.37851565]
[1759157244616,0.2497,4205.0,4204.4,3.116]
[1759157244854,0.2497,4205.0,4204.5,2.37839936]
[1759157245344,0.4885,4205.0,4204.4,5.49445275]
[1759157245650,0.4885,4205.0,4204.4,3.116]
[1759157245945,0.4885,4205.0,4204.4,2.37845488]
[1759157246132,0.4885,4205.0,4204.5,3.113]
[1759157246346,0.4885,4205.0,4204.5,5.49138795]
[1759157246643,0.4885,4205.0,4204.6,3.113]
[1759157246840,0.2497,4205.0,4204.6,5.49129893]
[1759157247148,0.2497,4205.0,4204.6,3.113]
[1759157247336,0.6766,4204.9,4204.3,2.37850944]
[1759157247645,0.2388,4204.9,4204.4,2.37845777]
[1759157247849,0.2497,4205.0,4204.5,5.49038428]
[1759157248020,0.2388,4204.9,4204.5,3.112]
[1759157248215,0.2388,4204.8,4204.2,2.37857312]
[1759157248552,0.2497,4205.0,4204.8,2.37822006]
[1759157248715,0.2497,4205.0,4204.9,3.3526]
[1759157248917,0.2497,4205.0,4204.9,3.3516]
[1759157249163,0.2497,4205.0,4204.9,6.16367784]
[1759157249447,0.2497,4205.0,4204.9,3.3516]
[1759157249654,0.13079394,4205.0,4204.9,3.3516]
[1759157250020,0.13079394,4205.0,4204.9,3.11]
[1759157250239,0.36959394,4205.0,4204.2,0.2416]
[1759157250439,0.36959394,4205.0,4204.1,0.002]
[1759157250720,0.4378,4204.9,4204.2,3.108]
[1759157251031,0.2388,4204.8,4204.2,3.108]
[1759157251341,0.2388,4204.8,4204.2,3.2264]
[1759157251735,0.2388,4204.7,4204.2,0.1184]
[1759157251931,0.6766,4204.6,4204.2,0.1184]
[1759157252250,0.6766,4204.5,4204.3,3.107]
[1759157252454,0.6766,4204.4,4204.1,0.002]
[1759157252820,0.2388,4204.4,4204.1,0.002]
[1759157253051,0.4378,4204.3,4204.1,0.002]
[1759157253259,0.6766,4204.3,4204.1,0.002]
[1759157253455,0.2388,4204.2,4204.1,0.002]
[1759157254742,0.795,4204.2,4204.1,0.002]
[1759157255170,2.54434937,4204.2,4204.1,0.002]
[1759157255470,2.227,4204.2,4204.1,0.002]
[1759157256361,5.227,4204.2,4204.1,0.002]
[1759157256567,7.6055738,4204.2,4204.1,0.002]
[1759157257126,7.6047738,4204.2,4204.1,0.002]
[1759157257567,8.60310102,4204.2,4204.1,0.002]
[1759157257772,17.48505196,4204.2,4204.1,0.002]
[1759157258367,9.39510102,4204.2,4204.1,0.002]
[1759157260367,7.01652722,4204.2,4204.1,0.002]
[1759157260877,9.39510102,4204.2,4204.1,0.002]
[1759157261078,10.11852722,4204.2,4204.1,0.002]
[1759157261282,9.32652722,4204.2,4204.1,0.002]
[1759157261468,8.77032722,4204.2,4204.1,0.002]
[1759157261668,8.53232722,4204.2,4204.1,0.002]
[1759157262268,8.77122722,4204.2,4204.1,0.002]
[1759157262501,9.23882722,4204.2,4204.1,0.002]
[1759157262801,8.77122722,4204.2,4204.1,0.002]
[1759157263168,9.23882722,4204.2,4204.1,0.002]
[1759157264897,12.40940102,4204.2,4204.1,0.002]
[1759157265406,10.03082722,4204.2,4204.1,0.002]
[1759157266916,12.40940102,4204.2,4204.1,0.002]
[1759157267117,10.03082722,4204.2,4204.1,0.002]
[1759157268214,12.40940102,4204.2,4204.1,0.002]
[1759157268419,10.03082722,4204.2,4204.1,0.002]
[1759157269896,5.43032722,4204.2,4204.1,0.002]
[1759157270120,5.43032722,4204.2,4204.1,0.2413]
[1759157270121,4.432,4204.2,4204.1,0.2413]
[1759157270299,1.432,4204.4,4204.1,0.7151]
[1759157270615,1.432,4204.4,4204.2,0.7131]
[1759157270913,4.432,4204.4,4204.1,0.002]
[1759157273148,4.432,4204.4,4204.1,0.2413]
[1759157274151,4.432,4204.4,4204.1,0.002]
[1759157274320,5.20839,4204.4,4204.1,0.002]
[1759157274921,5.20839,4204.4,4204.1,0.2413]
[1759157275116,5.20839,4204.4,4204.2,0.2393]
[1759157275323,5.20839,4204.4,4204.1,0.002]
[1759157276547,5.20839,4204.4,4204.1,0.7151]
[1759157277153,5.20839,4204.4,4204.1,0.2413]
[1759157277522,5.262139,4204.3,4204.1,0.002]
[1759157277744,2.262139,4204.3,4204.1,0.002]
[1759157278423,1.432,4204.3,4204.1,0.002]
[1759157279147,1.432,4204.3,4204.1,0.2413]
[1759157280142,1.432,4204.3,4204.1,0.002]
[1759157280346,0.2389,4204.2,4203.7,0.002]
[1759157280543,5.3424,4203.8,4203.7,0.002]
[1759157280768,8.87928973,4203.8,4203.7,0.002]
[1759157280970,9.58578973,4203.8,4203.7,0.002]
[1759157282284,9.58498973,4203.8,4203.7,0.002]
[1759157283547,12.75578986,4203.8,4203.7,0.002]
[1759157283744,12.75578986,4203.8,4202.4,0.2393]
[1759157283745,1.4312,4203.2,4202.4,0.2393]
[1759157283975,1.4312,4203.2,4202.1,0.2393]
[1759157283976,3.1184,4202.4,4202.1,0.2393]
[1759157284147,4.4312,4202.8,4202.1,0.7131]
[1759157284348,4.4312,4202.8,4201.6,0.1184]
[1759157284349,0.1184,4202.1,4201.6,0.1184]
[1759157284680,0.1184,4202.1,4200.5,0.002]
[1759157284681,3.0,4201.6,4201.3,0.48543574]
[1759157284881,3.0,4201.6,4200.9,0.2393]
[1759157285081,3.0,4201.6,4201.0,0.4738]
[1759157285451,5.16942772,4201.6,4200.6,0.2393]
[1759157285853,3.73822772,4201.6,4200.7,0.4738]
[1759157286179,3.0,4202.0,4200.8,0.2393]
[1759157286378,3.0,4202.6,4200.9,0.49760442]
[1759157286578,3.0,4202.6,4201.0,0.2393]
[1759157286778,3.0,4202.6,4201.1,0.02380328]
[1759157286979,3.0,4202.6,4201.1,2.85412896]
[1759157287179,0.64605625,4202.5,4201.2,0.7131]
[1759157287371,0.64605625,4202.5,4201.3,0.7131]
[1759157287571,0.64605625,4202.5,4201.4,0.7131]
[1759157287886,0.64605625,4202.5,4201.5,0.7131]
[1759157288190,3.0,4202.6,4201.6,0.7131]
[1759157288393,3.2389,4202.6,4201.6,0.7131]
[1759157289299,0.6769,4202.5,4201.2,0.4708]
[1759157289483,3.0,4202.3,4200.7,0.4708]
[1759157289688,1.49779,4202.2,4201.6,0.002]
[1759157289877,3.0,4202.0,4201.6,0.002]
[1759157290402,0.6769,4201.9,4201.6,0.002]
[1759157290563,3.0,4201.7,4201.6,0.002]
[1759157290768,3.0,4201.9,4201.6,0.002]
[1759157290979,3.692089,4201.9,4201.6,0.002]
[1759157291792,0.692089,4201.9,4201.6,0.002]
[1759157291965,0.2417,4201.8,4201.6,0.002]
[1759157292162,0.2417,4202.7,4201.7,0.7022]
[1759157292392,3.0,4202.5,4201.7,0.7022]
[1759157292583,0.87587,4202.4,4201.6,0.002]
[1759157293884,3.0,4202.2,4201.6,0.002]
[1759157294396,0.6738,4202.1,4201.6,0.002]
[1759157294609,3.0,4201.9,4201.6,0.002]
[1759157295594,3.0,4201.9,4201.6,0.2282]
[1759157295811,0.1184,4201.8,4201.7,0.2262]
[1759157296013,0.1184,4201.8,4201.6,0.4467]
[1759157296187,0.1184,4201.8,4201.6,0.002]
[1759157296813,5.1058,4201.7,4201.6,0.002]
[1759157297014,5.49262,4201.7,4201.6,0.002]
[1759157297795,5.26442,4201.7,4201.6,0.002]
[1759157298197,5.93822,4201.7,4201.6,0.002]
[1759157299088,6.73022,4201.7,4201.6,0.002]
[1759157299443,11.62020905,4201.7,4201.6,0.002]
[1759157299598,1.432,4201.3,4201.1,0.002]
[1759157299798,29.4830055,4201.2,4201.1,0.002]
[1759157299987,30.1568055,4201.2,4201.1,0.002]
[1759157300794,28.6910055,4201.2,4201.1,0.002]
[1759157301497,7.533,4201.2,4201.1,0.002]
[1759157301819,4.432,4201.2,4201.1,0.2282]
[1759157302202,4.432,4201.2,4201.1,0.002]
[1759157303544,25.4468055,4201.2,4201.1,0.002]
[1759157305103,29.2176055,4201.2,4201.1,0.002]
[1759157305438,31.61491093,4201.2,4201.1,0.002]
[1759157305638,31.16931093,4201.2,4201.1,0.002]
[1759157305931,3.0,4201.2,4201.1,0.002]
[1759157306138,3.0,4201.2,4201.1,0.2282]
[1759157306309,3.0,4201.2,4201.1,0.002]
[1759157307130,2.9992,4201.2,4201.1,0.002]
[1759157308150,2.9992,4201.2,4201.1,0.2282]
[1759157308835,2.9992,4201.2,4201.1,0.002]
[1759157310208,9.88494234,4201.2,4201.1,0.6729]
[1759157310403,6.88574234,4201.2,4201.1,0.6729]
[1759157310606,7.00414234,4201.2,4201.1,0.6729]
[1759157310824,10.00414234,4201.2,4201.1,0.6729]
[1759157311350,10.00414234,4201.2,4201.1,0.2282]
[1759157311751,10.00414234,4201.2,4201.1,0.002]
[1759157312056,10.00414234,4201.2,4201.1,0.6729]
[1759157312256,7.00414234,4201.2,4201.1,0.6729]
[1759157312440,0.1184,4201.2,4201.1,0.6729]
[1759157312753,7.00414234,4201.2,4201.1,0.6729]
[1759157314630,0.1184,4201.2,4201.1,0.6729]
[1759157314842,0.1184,4201.5,4201.1,0.6729]
[1759157315057,0.1184,4201.5,4201.2,0.6709]
[1759157315454,0.1184,4201.5,4201.3,0.6709]
[1759157315641,0.001,4201.7,4201.4,0.6709]
[1759157315842,0.001,4201.7,4201.5,0.6709]
[1759157316351,0.001,4201.7,4201.6,0.6709]